bitfinex-derivatives/quotes_BTCF0:USTF0_20250814
["timestamp","ask_amount","ask_price","bid_price","bid_amount"]
[1755182818324,0.8888863,119440.0,119430.0,0.40725]
[1755182818623,0.23535717,119440.0,119430.0,0.65062]
[1755182818824,0.23535717,119440.0,119430.0,0.85061991]
[1755182819416,0.34389717,119440.0,119430.0,0.85061991]
[1755182819617,0.22180667,119440.0,119430.0,0.85061991]
[1755182819917,0.21931881,119440.0,119430.0,0.85261991]
[1755182820513,0.21931881,119440.0,119430.0,0.85161991]
[1755182820917,0.26458881,119440.0,119430.0,0.85161991]
[1755182821116,0.21931881,119440.0,119430.0,0.85161991]
[1755182821311,0.11077881,119440.0,119430.0,0.85161991]
[1755182821519,0.90564,119460.0,119430.0,0.56179991]
[1755182821718,0.10854,119460.0,119450.0,1.01142]
[1755182822221,0.15381,119460.0,119450.0,0.94255]
[1755182822427,0.69480976,119460.0,119450.0,1.01142]
[1755182822729,0.19669704,119460.0,119450.0,0.76805]
[1755182822920,1.76839376,119460.0,119450.0,0.7216]
[1755182823120,1.76985141,119460.0,119450.0,0.7216]
[1755182823323,1.27093869,119460.0,119450.0,0.7216]
[1755182823518,1.76985141,119460.0,119450.0,0.7216]
[1755182823917,1.76985141,119460.0,119450.0,0.3608]
[1755182824129,1.76985141,119460.0,119450.0,0.3514977]
[1755182824726,1.76985141,119460.0,119450.0,0.3489977]
[1755182825027,1.76985141,119460.0,119430.0,0.65062]
[1755182825228,0.65272272,119450.0,119440.0,0.3608]
[1755182825522,0.54418272,119450.0,119440.0,0.04645]
[1755182825725,0.54418272,119450.0,119440.0,0.40725]
[1755182825921,0.61025949,119450.0,119440.0,0.28982]
[1755182826127,0.21988677,119450.0,119440.0,0.28982]
[1755182826326,0.21988677,119450.0,119440.0,0.65062]
[1755182826623,0.21988677,119450.0,119440.0,0.58275]
[1755182826923,0.71879949,119450.0,119440.0,0.40825]
[1755182827128,0.21988677,119450.0,119440.0,0.04745]
[1755182827423,0.71879949,119450.0,119440.0,0.40825]
[1755182827823,0.8006,119480.0,119440.0,0.65162]
[1755182828025,0.90464,119470.0,119450.0,0.04645]
[1755182828231,0.90464,119470.0,119460.0,0.7216]
[1755182828534,2.09435272,119470.0,119450.0,0.33402864]
[1755182828731,0.49891272,119460.0,119450.0,0.32715864]
[1755182828932,0.0008,119450.0,119440.0,0.3608]
[1755182829121,1.89499272,119450.0,119420.0,0.34165044]
[1755182829321,0.49891272,119430.0,119420.0,0.33519412]
[1755182829527,1.02398683,119430.0,119410.0,0.3608]
[1755182829734,1.02398683,119430.0,119410.0,0.40725]
[1755182829735,0.49891272,119420.0,119410.0,0.40725]
[1755182829920,0.51849955,119420.0,119410.0,0.38735]
[1755182830125,0.7521331,119420.0,119410.0,0.38735]
[1755182830326,0.7521331,119420.0,119400.0,0.3608]
[1755182830526,0.11414,119400.0,119390.0,0.432]
[1755182830829,0.68768955,119400.0,119390.0,0.3608]
[1755182831226,0.17217,119390.0,119380.0,0.3608]
[1755182831533,0.19175683,119390.0,119380.0,0.3608]
[1755182832330,0.19175683,119390.0,119380.0,0.3668]
[1755182832535,0.19175683,119390.0,119380.0,0.48612]
[1755182832736,0.19175683,119390.0,119380.0,0.66062]
[1755182834633,0.01958683,119390.0,119380.0,0.66062]
[1755182834937,0.19175683,119390.0,119380.0,0.66062]
[1755182836131,0.16373219,119390.0,119380.0,0.66062]
[1755182836532,0.06043219,119390.0,119380.0,2.43178063]
[1755182837038,1.18719354,119420.0,119380.0,2.43178063]
[1755182837236,0.2808244,119420.0,119400.0,0.3608]
[1755182837541,0.2808244,119420.0,119410.0,0.22095]
[1755182837928,0.1086544,119420.0,119410.0,1.15654063]
[1755182838236,0.96404,119440.0,119410.0,1.22752063]
[1755182838436,1.03291,119440.0,119430.0,0.28982]
[1755182838634,0.67211,119440.0,119430.0,0.28982]
[1755182838934,1.03291,119440.0,119430.0,0.28982]
[1755182839639,1.07405365,119440.0,119430.0,0.28982]
[1755182840138,1.11932365,119440.0,119430.0,0.28982]
[1755182840338,1.50891237,119440.0,119410.0,0.1745]
[1755182840534,1.50891237,119440.0,119410.0,0.168063]
[1755182840535,0.77649272,119420.0,119410.0,0.168063]
[1755182840839,0.23875,119410.0,119400.0,0.42967]
[1755182841037,0.23875,119410.0,119400.0,0.43667791]
[1755182841236,0.23875,119410.0,119400.0,0.79747791]
[1755182841546,1.4622658,119430.0,119410.0,0.04645]
[1755182841730,0.96335308,119430.0,119410.0,0.58575]
[1755182841931,0.96335308,119430.0,119410.0,0.58675]
[1755182841932,1.4622658,119430.0,119410.0,0.58675]
[1755182842128,0.96335308,119430.0,119420.0,0.04645]
[1755182842433,1.13038508,119430.0,119420.0,0.28982]
[1755182842632,1.13038508,119430.0,119420.0,0.98873263]
[1755182842633,0.06003308,119430.0,119420.0,0.98873263]
[1755182842833,1.44389673,119440.0,119430.0,0.28982]
[1755182843029,0.48094365,119440.0,119430.0,0.65062]
[1755182843437,0.04114365,119440.0,119430.0,1.14953272]
[1755182843641,0.21023663,119440.0,119430.0,1.34953263]
[1755182843941,0.0836728,119440.0,119430.0,1.51734063]
[1755182844137,0.0836728,119440.0,119430.0,1.31734072]
[1755182844944,0.12502145,119440.0,119430.0,0.818428]
[1755182845248,0.12502145,119440.0,119430.0,1.51814063]
[1755182845249,0.12602145,119440.0,119430.0,1.51814063]
[1755182845639,0.12602145,119440.0,119430.0,1.51734063]
[1755182846034,0.18605453,119440.0,119430.0,1.01842791]
[1755182846342,0.21881145,119440.0,119430.0,1e-07]
[1755182846541,0.26695145,119440.0,119430.0,1e-07]
[1755182846843,0.62775145,119440.0,119430.0,1e-07]
[1755182847538,0.62775145,119440.0,119410.0,0.85971272]
[1755182847539,0.3948365,119430.0,119410.0,0.85971272]
[1755182847738,0.6103505,119430.0,119410.0,1.22752063]
[1755182848246,0.6103505,119430.0,119420.0,0.15855]
[1755182848435,0.4946505,119430.0,119420.0,0.77552272]
[1755182849141,0.35530482,119430.0,119420.0,0.77552272]
[1755182849638,0.35530482,119430.0,119420.0,1.13832272]
[1755182849844,0.35530482,119430.0,119420.0,1.50613063]
[1755182850144,0.35530482,119430.0,119420.0,1.00721791]
[1755182850643,0.58277482,119430.0,119420.0,1.00721791]
[1755182850936,1.84518362,119450.0,119420.0,1.00721791]
[1755182850937,0.41589538,119450.0,119420.0,1.00721791]
[1755182851243,0.0836739,119440.0,119430.0,1.06509272]
[1755182851537,0.0836739,119440.0,119430.0,0.40763]
[1755182851738,0.0836739,119440.0,119430.0,1.13632272]
[1755182852148,0.1246431,119440.0,119430.0,1.13632272]
[1755182852336,0.1543131,119440.0,119430.0,0.88307452]
[1755182852537,0.1543131,119440.0,119430.0,0.2638932]
[1755182852736,0.1543131,119440.0,119430.0,0.57046982]
[1755182852935,0.1477208,119430.0,119420.0,0.59058]
[1755182853139,0.1477208,119430.0,119420.0,1.28949263]
[1755182853338,0.1477208,119430.0,119420.0,1.08949272]
[1755182853946,0.1477208,119430.0,119420.0,0.59058]
[1755182854447,0.1477208,119430.0,119420.0,0.63741]
[1755182854647,0.1477208,119430.0,119420.0,0.63941]
[1755182855137,0.1477208,119430.0,119420.0,1.13832272]
[1755182855739,0.1477208,119430.0,119420.0,0.56818]
[1755182855942,0.1477208,119430.0,119420.0,0.002]
[1755182856245,0.6759928,119430.0,119420.0,0.002]
[1755182856641,1.39819552,119430.0,119420.0,0.002]
[1755182856844,1.51899552,119430.0,119420.0,0.002]
[1755182857046,1.0200828,119430.0,119420.0,0.002]
[1755182857846,1.0210828,119430.0,119420.0,0.002]
[1755182858047,1.0210828,119430.0,119400.0,1.13632272]
[1755182858346,0.0995948,119410.0,119400.0,1.28949263]
[1755182858745,0.1477348,119410.0,119400.0,1.13632272]
[1755182859150,0.0995948,119410.0,119400.0,1.13632272]
[1755182859350,0.0982848,119410.0,119400.0,1.13632272]
[1755182859536,0.0836948,119410.0,119400.0,1.13632272]
[1755182860249,0.0836948,119410.0,119400.0,1.33632263]
[1755182860841,0.0836948,119410.0,119400.0,2.23664263]
[1755182861035,0.0836948,119410.0,119400.0,2.23764263]
[1755182862035,0.0836948,119410.0,119400.0,2.40545063]
[1755182862346,0.0836948,119410.0,119400.0,2.40625063]
[1755182862544,0.33484891,119420.0,119400.0,2.12964063]
[1755182862740,0.33484891,119420.0,119410.0,0.85971272]
[1755182863048,0.35635639,119420.0,119410.0,0.85971272]
[1755182863252,0.35635639,119420.0,119410.0,1.50493063]
[1755182863450,0.0836808,119430.0,119410.0,1.22832063]
[1755182863746,0.2510546,119430.0,119420.0,2.03616272]
[1755182864048,0.2510546,119430.0,119420.0,2.20397072]
[1755182864245,0.2010546,119430.0,119420.0,2.40477063]
[1755182865255,0.5234632,119460.0,119430.0,0.27741]
[1755182865441,0.5234632,119460.0,119450.0,1.13532272]
[1755182865442,0.1673299,119460.0,119450.0,1.13532272]
[1755182865642,0.1673144,119470.0,119460.0,0.27661]
[1755182865842,0.1673144,119470.0,119460.0,2.03584272]
[1755182866044,0.20826208,119470.0,119460.0,2.20365072]
[1755182866651,0.20826208,119470.0,119460.0,1.704738]
[1755182866844,0.27584008,119470.0,119460.0,2.20365072]
[1755182867040,0.27584008,119470.0,119460.0,1.704738]
[1755182867041,0.48389008,119470.0,119460.0,1.704738]
[1755182867241,0.71048079,119470.0,119460.0,2.20365072]
[1755182867441,0.71048079,119470.0,119460.0,2.03584272]
[1755182867846,0.71048079,119470.0,119460.0,0.40763]
[1755182868047,0.71048079,119470.0,119460.0,0.63641]
[1755182868248,0.71048079,119470.0,119460.0,0.27661]
[1755182868249,0.71128079,119470.0,119460.0,0.27661]
[1755182868554,0.3592698,119460.0,119450.0,2.03444272]
[1755182868754,0.3592698,119460.0,119450.0,0.2657]
[1755182868944,0.0836669,119450.0,119440.0,1.55650272]
[1755182869250,0.0836739,119440.0,119430.0,1.01826272]
[1755182869452,0.0836739,119440.0,119430.0,1.12874]
[1755182869453,0.3592839,119440.0,119430.0,1.12874]
[1755182869749,0.51831461,119440.0,119430.0,0.07123]
[1755182869955,0.083695,119410.0,119400.0,0.85971272]
[1755182870145,0.131835,119410.0,119400.0,1.75843272]
[1755182870345,0.131835,119410.0,119400.0,1.066528]
[1755182870551,0.131835,119410.0,119400.0,1.63667072]
[1755182870854,0.131835,119410.0,119400.0,1.68350072]
[1755182871352,0.131835,119410.0,119400.0,1.68550072]
[1755182871949,0.652545,119410.0,119400.0,1.84405072]
[1755182872348,0.652545,119410.0,119400.0,1.84505072]
[1755182872552,0.87913571,119410.0,119400.0,1.84505072]
[1755182872862,0.87913571,119410.0,119400.0,0.27961]
[1755182873045,0.87913571,119410.0,119400.0,0.23278]
[1755182873357,0.87913571,119410.0,119400.0,0.003]
[1755182873657,0.87913571,119410.0,119390.0,0.27169869]
[1755182873658,0.359312,119400.0,119390.0,0.27169869]
[1755182873855,0.720112,119400.0,119390.0,0.27169869]
[1755182874153,0.720112,119400.0,119390.0,0.22978]
[1755182874341,0.374309,119390.0,119380.0,1.62924272]
[1755182874546,0.735109,119390.0,119380.0,1.62924272]
[1755182874846,0.735109,119390.0,119380.0,1.13033]
[1755182875046,0.374309,119390.0,119380.0,1.62924272]
[1755182875251,0.083709,119390.0,119380.0,1.62924272]
[1755182875556,0.10577297,119390.0,119380.0,1.67751272]
[1755182875855,0.72895324,119390.0,119380.0,1.67951272]
[1755182876256,0.88798395,119390.0,119380.0,1.67951272]
[1755182876551,0.95821395,119390.0,119380.0,1.1806]
[1755182876753,0.59741395,119390.0,119380.0,1.67951272]
[1755182877055,0.59741395,119390.0,119380.0,1.68251272]
[1755182877257,0.95821395,119390.0,119380.0,1.68251272]
[1755182877463,0.88798395,119390.0,119380.0,1.68251272]
[1755182877757,0.30681395,119390.0,119380.0,1.68251272]
[1755182879358,0.35383395,119390.0,119380.0,1.68251272]
[1755182879554,0.30681395,119390.0,119380.0,1.85032072]
[1755182879753,0.40199325,119400.0,119380.0,1.93080072]
[1755182879950,0.40199325,119400.0,119390.0,0.69693272]
[1755182880562,0.4445565,119400.0,119390.0,0.365828]
[1755182880859,0.4445565,119400.0,119390.0,0.86474072]
[1755182881054,0.60358721,119400.0,119390.0,0.365828]
[1755182881448,0.4445565,119400.0,119390.0,0.365828]
[1755182881653,0.4445565,119400.0,119390.0,0.86474072]
[1755182881852,0.1673953,119410.0,119390.0,1.22734072]
[1755182882159,0.1673953,119410.0,119400.0,1.99841072]
[1755182882557,0.21030241,119410.0,119400.0,1.99841072]
[1755182883260,0.21030241,119410.0,119400.0,1.499498]
[1755182883453,0.21030241,119410.0,119400.0,1.99941072]
[1755182883652,0.25732241,119410.0,119400.0,1.99941072]
[1755182885061,0.25732241,119410.0,119400.0,2.00041072]
[1755182886157,0.25732241,119410.0,119400.0,1.501498]
[1755182886357,0.25732241,119410.0,119400.0,2.00041072]
[1755182886557,0.32306648,119410.0,119400.0,2.00041072]
[1755182887759,0.65544719,119410.0,119400.0,2.00041072]
[1755182887959,0.72567719,119410.0,119400.0,1.501498]
[1755182888261,0.56664648,119410.0,119400.0,1.501498]
[1755182888466,1.08727719,119410.0,119400.0,0.8982]
[1755182888760,0.0837019,119400.0,119390.0,0.89612]
[1755182888965,0.3743089,119390.0,119380.0,0.89604]
[1755182889154,0.3743089,119390.0,119380.0,1.56276072]
[1755182889457,0.3743089,119390.0,119360.0,0.3608]
[1755182889458,0.0837229,119370.0,119360.0,0.3608]
[1755182889657,0.3743229,119370.0,119360.0,1.56268072]
[1755182890163,0.7351229,119370.0,119360.0,1.56268072]
[1755182890558,0.6648929,119370.0,119360.0,1.063768]
[1755182890749,0.4915429,119370.0,119360.0,1.063768]
[1755182890961,0.1307429,119370.0,119360.0,1.59575072]
[1755182891152,0.1307429,119370.0,119360.0,1.457638]
[1755182891355,0.24275361,119370.0,119360.0,1.95655072]
[1755182891560,0.24275361,119370.0,119360.0,1.457638]
[1755182891759,0.24275361,119370.0,119360.0,1.95855072]
[1755182892064,0.28977361,119370.0,119360.0,1.459638]
[1755182892252,0.28977361,119370.0,119360.0,1.95855072]
[1755182893159,0.24275361,119370.0,119360.0,1.95855072]
[1755182893365,0.28977361,119370.0,119360.0,1.95855072]
[1755182893757,0.28977361,119370.0,119360.0,1.459638]
[1755182894065,0.28977361,119370.0,119360.0,1.95855072]
[1755182895562,0.0837229,119370.0,119360.0,1.95855072]
[1755182896259,0.0837229,119370.0,119360.0,1.459638]
[1755182896260,0.1307429,119370.0,119360.0,1.459638]
[1755182896458,0.53335361,119370.0,119360.0,1.59775072]
[1755182896662,0.3743229,119370.0,119360.0,1.59775072]
[1755182896964,0.89415361,119370.0,119360.0,1.067888]
[1755182897472,0.5418227,119350.0,119340.0,0.03007]
[1755182897657,0.6255656,119350.0,119340.0,1.0386644]
[1755182897857,0.9863656,119350.0,119340.0,1.0085944]
[1755182898162,1.14539631,119350.0,119340.0,1.0085944]
[1755182898466,0.3743439,119340.0,119330.0,0.0001]
[1755182898657,0.374351,119330.0,119320.0,0.75315285]
[1755182898859,0.374351,119330.0,119320.0,1.25206557]
[1755182898860,0.735151,119330.0,119320.0,1.25206557]
[1755182899161,0.735151,119330.0,119320.0,1.36573997]
[1755182899162,0.130771,119330.0,119320.0,1.36573997]
[1755182899368,0.491571,119330.0,119320.0,1.36573997]
[1755182899762,0.666921,119330.0,119320.0,1.36573997]
[1755182899962,0.93902924,119330.0,119320.0,1.36573997]
[1755182900568,0.94002924,119330.0,119320.0,1.36573997]
[1755182900757,0.50899924,119330.0,119320.0,0.86682725]
[1755182901072,0.33564924,119330.0,119320.0,1.36573997]
[1755182901962,0.86979924,119330.0,119320.0,1.36573997]
[1755182902164,0.94002924,119330.0,119320.0,0.86682725]
[1755182902363,0.94002924,119330.0,119320.0,1.36573997]
[1755182904164,0.78099853,119330.0,119320.0,1.36573997]
[1755182905768,0.78099853,119330.0,119320.0,0.86682725]
[1755182905970,0.78099853,119330.0,119320.0,1.36573997]
[1755182906671,0.06730433,119350.0,119320.0,1.72733997]
[1755182906874,0.15903071,119350.0,119340.0,0.85971272]
[1755182907070,0.29244761,119350.0,119340.0,1.75367272]
[1755182907366,0.53268761,119350.0,119340.0,1.50654712]
[1755182907762,0.29244761,119350.0,119340.0,1.50654712]
[1755182907963,0.29544761,119350.0,119340.0,1.50654712]
[1755182908165,0.1364169,119350.0,119340.0,1.50654712]
[1755182908859,0.3796569,119350.0,119340.0,1.50654712]
[1755182909164,0.3736639,119340.0,119330.0,1.39255272]
[1755182909469,0.7344639,119340.0,119330.0,1.50622712]
[1755182910372,0.7344639,119340.0,119330.0,1.50822712]
[1755182910373,0.76006503,119340.0,119330.0,1.50822712]
[1755182910564,0.76006503,119340.0,119330.0,1.50922712]
[1755182911463,0.31805574,119340.0,119330.0,1.50922712]
[1755182911768,0.10934503,119340.0,119330.0,1.50922712]
[1755182912162,0.15902503,119340.0,119330.0,1.0103144]
[1755182912366,0.15902503,119340.0,119330.0,1.50922712]
[1755182912765,0.15902503,119340.0,119330.0,1.0103144]
[1755182912967,0.15902503,119340.0,119330.0,1.50922712]
[1755182915278,0.02560113,119340.0,119330.0,1.50922712]
[1755182915472,0.02560113,119340.0,119330.0,1.87082712]
[1755182916573,0.10934503,119340.0,119330.0,1.87082712]
[1755182917072,0.10934503,119340.0,119330.0,1.87002712]
[1755182918075,0.02560113,119340.0,119330.0,1.87002712]
[1755182918580,0.31871334,119350.0,119330.0,1.87002712]
[1755182918873,0.29239017,119360.0,119340.0,0.97518712]
[1755182919076,0.29239017,119360.0,119350.0,1.50486712]
[1755182919871,0.29239017,119360.0,119350.0,1.86566712]
[1755182920072,0.0837367,119360.0,119350.0,1.86566712]
[1755182920270,0.2511819,119370.0,119350.0,1.86566712]
[1755182920471,0.1674522,119370.0,119360.0,1.47229984]
[1755182920666,0.2511593,119380.0,119360.0,1.47309984]
[1755182920880,0.2511593,119380.0,119370.0,1.86430712]
[1755182921471,0.2511593,119380.0,119370.0,1.50350712]
[1755182921679,0.4913993,119380.0,119370.0,1.50350712]
[1755182922582,0.65043001,119380.0,119370.0,1.50350712]
[1755182922782,0.70011001,119380.0,119370.0,1.50350712]
[1755182923081,0.70011001,119380.0,119370.0,1.50450712]
[1755182923583,0.67380621,119380.0,119370.0,1.50450712]
[1755182923884,0.74264621,119380.0,119370.0,1.50450712]
[1755182924181,0.74264621,119380.0,119370.0,1.50386712]
[1755182924182,1.10424621,119380.0,119370.0,1.50386712]
[1755182925684,1.10424621,119380.0,119370.0,1.0049544]
[1755182925890,1.10424621,119380.0,119370.0,1.50386712]
[1755182926184,1.10424621,119380.0,119370.0,0.89224]
[1755182926687,1.10344621,119380.0,119370.0,0.89224]
[1755182926986,1.10344621,119380.0,119370.0,1.39115272]
[1755182927286,0.74264621,119380.0,119370.0,1.39115272]
[1755182927673,1.29238621,119380.0,119370.0,0.89224]
[1755182927878,1.29318621,119380.0,119370.0,0.89224]
[1755182928079,1.17071531,119380.0,119350.0,1.62038272]
[1755182928280,1.98361531,119380.0,119360.0,0.04951]
[1755182928483,2.04364839,119380.0,119360.0,0.04951]
[1755182928781,0.0008,119360.0,119350.0,0.03249]
[1755182928985,0.3527618,119360.0,119350.0,0.3003344]
[1755182929185,0.3357418,119360.0,119350.0,0.3739544]
[1755182929387,0.3357418,119360.0,119350.0,0.87286712]
[1755182929588,0.3357418,119360.0,119350.0,0.3739544]
[1755182930086,0.3357418,119360.0,119350.0,0.3769544]
[1755182930482,0.36121477,119360.0,119350.0,0.3769544]
[1755182930883,0.36041477,119360.0,119350.0,0.87786712]
[1755182931183,0.36041477,119360.0,119350.0,0.7397544]
[1755182931184,0.43570968,119360.0,119350.0,0.7397544]
[1755182931387,0.43570968,119360.0,119350.0,1.23866712]
[1755182932392,0.43570968,119360.0,119350.0,0.87786712]
[1755182932888,0.43570968,119360.0,119350.0,1.23866712]
[1755182933892,0.02547297,119360.0,119350.0,1.23946712]
[1755182934088,0.1674543,119370.0,119350.0,1.23946712]
[1755182934397,0.15903071,119370.0,119360.0,2.03657272]
[1755182934784,0.15903071,119370.0,119360.0,2.14924712]
[1755182935792,0.24276041,119370.0,119360.0,2.14924712]
[1755182936396,0.09773873,119390.0,119370.0,0.28622]
[1755182936591,0.13910281,119390.0,119380.0,0.28622]
[1755182937492,0.14010281,119390.0,119380.0,0.28622]
[1755182938880,0.14010281,119390.0,119380.0,0.21816]
[1755182939197,1.59283117,119390.0,119370.0,0.04897]
[1755182939392,0.73562353,119390.0,119370.0,0.40977]
[1755182939592,0.0837297,119370.0,119360.0,0.40977]
[1755182939892,0.1323967,119360.0,119350.0,1.09696272]
[1755182940092,0.1323967,119360.0,119350.0,1.20963712]
[1755182940297,0.1323967,119360.0,119350.0,0.3499244]
[1755182940489,0.0837508,119340.0,119330.0,0.22434]
[1755182940790,0.0837508,119340.0,119330.0,0.83592712]
[1755182941500,0.0837508,119340.0,119330.0,0.3370144]
[1755182941698,0.0837508,119340.0,119330.0,0.83592712]
[1755182941996,0.0837508,119340.0,119330.0,1.24569712]
[1755182942297,0.15223322,119340.0,119330.0,1.24569712]
[1755182942494,0.15223322,119340.0,119330.0,0.7467844]
[1755182942688,0.15223322,119340.0,119330.0,2.13689712]
[1755182942888,0.15223322,119340.0,119330.0,2.13889712]
[1755182943391,0.15223322,119340.0,119330.0,1.6399844]
[1755182943593,0.15223322,119340.0,119330.0,2.13889712]
[1755182945095,0.0837508,119340.0,119330.0,2.10283712]
[1755182945399,0.0837508,119340.0,119330.0,1.79064712]
[1755182945592,0.0837508,119340.0,119330.0,1.26360712]
[1755182945792,0.15118139,119340.0,119330.0,2.15136712]
[1755182946094,0.2512195,119360.0,119340.0,0.06806]
[1755182946299,0.27657896,119360.0,119350.0,2.14628712]
[1755182947298,0.27657896,119360.0,119350.0,1.78548712]
[1755182947597,0.27657896,119360.0,119350.0,2.14628712]
[1755182947988,0.08373,119370.0,119350.0,2.14628712]
[1755182948194,0.1928204,119370.0,119360.0,1.14593272]
[1755182948696,0.26075639,119370.0,119360.0,1.25860712]
[1755182950190,0.26075639,119370.0,119360.0,2.14564712]
[1755182950500,0.48414639,119370.0,119360.0,1.2858544]
[1755182950802,0.48414639,119370.0,119360.0,2.14556712]
[1755182950996,0.41299639,119370.0,119360.0,2.14556712]
[1755182951400,0.26075639,119370.0,119360.0,2.14556712]
[1755182951595,0.41299639,119370.0,119360.0,2.14556712]
[1755182952091,0.26075639,119370.0,119360.0,2.14556712]
[1755182954205,0.41299639,119370.0,119360.0,2.14556712]
[1755182954705,0.26075639,119370.0,119360.0,2.14480712]
[1755182954905,0.26075639,119370.0,119360.0,1.25860712]
[1755182955106,0.26075639,119370.0,119360.0,2.14476712]
[1755182956007,0.61106795,119390.0,119370.0,0.23725]
[1755182956210,0.61106795,119390.0,119380.0,0.28622]
[1755182957303,0.31774392,119390.0,119380.0,0.28622]
[1755182957606,0.36375392,119390.0,119380.0,0.97050272]
[1755182958101,0.37294392,119390.0,119380.0,0.97050272]
[1755182958303,0.73374392,119390.0,119380.0,0.47159]
[1755182958808,0.73574392,119390.0,119380.0,0.47159]
[1755182959201,0.84844532,119390.0,119380.0,0.04897]
[1755182959510,2.30200754,119390.0,119370.0,0.04897]
[1755182959697,1.67367954,119390.0,119370.0,0.40977]
[1755182959902,1.68367954,119390.0,119370.0,0.40977]
[1755182960207,1.75371262,119390.0,119370.0,0.40977]
[1755182960398,0.39758167,119380.0,119370.0,0.3608]
[1755182960597,0.39758167,119380.0,119370.0,0.3576]
[1755182961112,0.39758167,119380.0,119370.0,0.95565]
[1755182961402,0.35492167,119380.0,119370.0,1.45456272]
[1755182961811,0.35492167,119380.0,119370.0,0.95565]
[1755182962401,0.35592167,119380.0,119370.0,1.00462]
[1755182962698,0.33836086,119380.0,119370.0,2.50108712]
[1755182963502,0.33836086,119380.0,119370.0,2.0021744]
[1755182963704,0.38102086,119380.0,119370.0,1.8895]
[1755182963905,0.38102086,119380.0,119370.0,1.00462]
[1755182964102,0.38102086,119380.0,119370.0,0.76737]
[1755182964698,0.38102086,119380.0,119370.0,0.76492]
[1755182965510,0.38102086,119380.0,119370.0,0.93064]
[1755182966500,0.38102086,119380.0,119370.0,0.99969]
[1755182967311,0.33836086,119380.0,119370.0,0.71595]
[1755182967515,0.41418086,119380.0,119370.0,0.76218]
[1755182967706,1.01584202,119390.0,119380.0,0.04623]
[1755182967914,1.39330245,119390.0,119380.0,0.24685862]
[1755182968217,0.2570124,119380.0,119370.0,0.81216272]
[1755182968416,0.28197243,119380.0,119370.0,0.31325]
[1755182968615,0.28197243,119380.0,119370.0,0.81216272]
[1755182969208,0.28197243,119380.0,119370.0,0.31325]
[1755182969518,0.28297243,119380.0,119370.0,0.97788272]
[1755182969707,0.28297243,119380.0,119370.0,0.66459273]
[1755182969908,0.28297243,119380.0,119370.0,0.21195]
[1755182970108,0.28297243,119380.0,119370.0,0.04623]
[1755182970413,0.1622394,119370.0,119360.0,1.28938272]
[1755182970717,0.18719943,119370.0,119360.0,0.42967]
[1755182971405,0.18719943,119370.0,119360.0,0.1949]
[1755182971614,1.0331739,119370.0,119350.0,1.47893]
[1755182971913,1.04683213,119370.0,119350.0,1.64376]
[1755182972316,1.04683213,119370.0,119360.0,0.04623]
[1755182972907,2.09754413,119370.0,119360.0,0.04623]
[1755182973113,1.89635966,119370.0,119350.0,0.04623]
[1755182973419,1.36800766,119370.0,119350.0,0.40703]
[1755182974017,0.1102335,119350.0,119340.0,0.52223]
[1755182974217,0.15175353,119350.0,119340.0,0.23477]
[1755182974411,0.21071353,119350.0,119340.0,0.21209]
[1755182974612,0.21071353,119350.0,119340.0,0.79043272]
[1755182974818,0.15787353,119350.0,119340.0,1.26670272]
[1755182975324,0.13138353,119350.0,119340.0,1.26670272]
[1755182975624,0.13138353,119350.0,119340.0,1.26770272]
[1755182975815,0.13138353,119350.0,119340.0,1.31593272]
[1755182977219,0.13138353,119350.0,119340.0,0.81702]
[1755182977420,0.13138353,119350.0,119340.0,1.31593272]
[1755182977616,0.10870353,119350.0,119340.0,1.42860712]
[1755182977817,0.24800353,119350.0,119340.0,1.42940712]
[1755182978013,0.24800353,119350.0,119340.0,1.42760712]
[1755182978316,0.24900353,119350.0,119340.0,1.42760712]
[1755182978521,0.25000353,119350.0,119340.0,1.42560712]
[1755182980017,0.11216258,119350.0,119340.0,1.42560712]
[1755182980216,0.11216258,119350.0,119340.0,1.42640712]
[1755182980619,0.2511992,119370.0,119350.0,0.1949]
[1755182980828,0.2511992,119370.0,119360.0,2.38339272]
[1755182981331,0.2511992,119370.0,119360.0,2.49606712]
[1755182981518,0.3022992,119370.0,119360.0,2.49606712]
[1755182981827,0.3042992,119370.0,119360.0,2.49606712]
[1755182982125,0.2541992,119370.0,119360.0,2.49606712]
[1755182982625,0.2521992,119370.0,119360.0,2.49606712]
[1755182982825,0.2531992,119370.0,119360.0,2.49606712]
[1755182983520,0.2531992,119370.0,119360.0,2.49558712]
[1755182983918,0.3828092,119370.0,119360.0,1.6358744]
[1755182984124,0.3828092,119370.0,119360.0,1.8306144]
[1755182984433,0.3374592,119370.0,119360.0,2.32952712]
[1755182984924,0.2863592,119370.0,119360.0,2.32952712]
[1755182986831,0.2531992,119370.0,119360.0,2.32952712]
[1755182988818,0.3374592,119370.0,119360.0,2.32952712]
[1755182990130,0.3828092,119370.0,119360.0,2.32952712]
[1755182990431,0.3828092,119370.0,119360.0,2.21685272]
[1755182991223,0.3374592,119370.0,119360.0,2.21685272]
[1755182992632,0.27804212,119370.0,119360.0,2.21685272]
[1755182993228,0.41734212,119370.0,119360.0,2.21685272]
[1755182993426,0.62870212,119370.0,119360.0,0.8367]
[1755182993733,0.2965974,119350.0,119340.0,0.5557]
[1755182993929,0.32144032,119350.0,119340.0,1.1870144]
[1755182994129,0.35460032,119350.0,119340.0,1.1870144]
[1755182994320,0.63328032,119350.0,119340.0,1.1870144]
[1755182994835,0.6193761,119340.0,119330.0,0.09881682]
[1755182995026,0.0837641,119320.0,119310.0,0.19359]
[1755182995334,0.10860702,119320.0,119310.0,1.68437712]
[1755182995533,0.10860702,119320.0,119310.0,1.85442712]
[1755182995733,0.10860702,119320.0,119310.0,1.94986712]
[1755182996327,0.19920382,119320.0,119310.0,1.4508744]
[1755182996529,0.19920382,119320.0,119310.0,1.94978712]
[1755182997236,0.14983382,119320.0,119310.0,1.94978712]
[1755182997437,0.14983382,119320.0,119310.0,2.31058712]
[1755182997934,0.19920382,119320.0,119310.0,1.95178712]
[1755182998125,0.19920382,119320.0,119310.0,1.95478712]
[1755182999326,0.19920382,119320.0,119310.0,1.4558744]
[1755183000024,0.26548658,119320.0,119310.0,1.8166744]
[1755183000224,0.21611658,119320.0,119310.0,1.8166744]
[1755183000629,0.26548658,119320.0,119310.0,1.8166744]
[1755183001235,0.21611658,119320.0,119310.0,1.8166744]
[1755183001738,0.21757595,119320.0,119310.0,1.8166744]
[1755183001931,0.21611658,119320.0,119310.0,1.8166744]
[1755183002128,0.26548658,119320.0,119310.0,1.8166744]
[1755183002438,1.16349551,119320.0,119310.0,1.31735]
[1755183002623,1.27349551,119320.0,119310.0,1.28487]
[1755183003021,1.27269551,119320.0,119310.0,1.28487]
[1755183003236,1.23269551,119320.0,119310.0,1.28487]
[1755183003841,1.16269551,119320.0,119310.0,1.28487]
[1755183004244,1.22272859,119320.0,119310.0,1.28487]